Cogmind - Beta 17 @@@ ROGUE MODE // 2026.07.07 @ 00:42:59 Player: Robbedoes2000 Result: Self-destructed Performance ------------- Evolutions (1) 500 Regions Visited (3) 600 Robots Destroyed (3) 15 Value Destroyed (18) 18 Prototype IDs (1) 20 Alien Tech Used (0) 0 Bonus (0) 0 TOTAL SCORE: 1153 Bonus ------- None Cogmind --------- Core Integrity 390/400 Matter 224/300 Energy 125/125 System Corruption 0% Temperature Cool (0) Movement Walking (120) Location -9/Materials Parts ------- > --- POWER (1) -------- Light Ion Engine > --- PROPULSION (3) --- Light Treads Aluminum Leg Aluminum Leg > --- UTILITY (3) ------ Small Storage Unit Improved Terrain Scanner Terrain Scan Processor > --- WEAPON (2) ------- Particle Cannon Mining Laser > --- INVENTORY (8) ---- Light Ion Engine Experimental Sensor Array Improved Targeting Computer Particle Cannon Particle Cannon Particle Cannon Grenade Launcher Peak State ------------ > --- POWER ------------ Light Ion Engine > --- PROPULSION ------- Aluminum Leg Aluminum Leg > --- UTILITY ---------- Small Storage Unit Experimental Sensor Array Terrain Scan Processor > --- WEAPON ----------- Particle Cannon Mining Laser > --- INVENTORY -------- Light Ion Engine Light Treads Improved Terrain Scanner Improved Targeting Computer Small Laser Particle Cannon Particle Cannon Particle Cannon [Rating: 19] Favorites ----------- Power Light Ion Engine Engine Light Ion Engine Propulsion Aluminum Leg Treads Light Treads Leg Aluminum Leg Utility Small Storage Unit Device Improved Terrain Scanner Storage Small Storage Unit Processor Terrain Scan Processor Weapon Particle Cannon Energy Gun Medium Laser Energy Cannon Particle Cannon Special Weapon Mining Laser Build | -11 -10 -10 -9 ------- Run | Yrd Mat Min Mat Slots Evolved 2 | . . . 2 Power . | . . . . Propulsion 1 | . . . 1 Utility 1 | . . . 1 Weapon . | . . . . Parts Attached 13 | 7 3 1 2 Power 1 | 1 . . . Engine 1 | 1 . . . Core . | . . . . Reactor . | . . . . Propulsion 3 | 2 . . 1 Treads 1 | . . . 1 Leg 2 | 2 . . . Wheel . | . . . . Hover . | . . . . Flight . | . . . . Utility 4 | 2 . 1 1 Device 2 | 1 . 1 . Storage 1 | 1 . . . Processor 1 | . . . 1 Hackware . | . . . . Protection . | . . . . Artifact . | . . . . Weapon 5 | 2 3 . . Energy Gun 2 | 2 . . . Energy Cannon 2 | . 2 . . Ballistic Gun . | . . . . Ballistic Cannon . | . . . . Launcher . | . . . . Special Weapon 1 | . 1 . . Impact Weapon . | . . . . Slashing Weapon . | . . . . Piercing Weapon . | . . . . Special Melee Weapon . | . . . . Unidentified Prototypes 1 | . . 1 . Parts Lost . | . . . . Power . | . . . . Propulsion . | . . . . Utility . | . . . . Weapon . | . . . . Highest Loss Streak . | . . . . To Critical Strikes . | . . . . Average Backups 6 | 2 7 8 7 Power . | . 1 1 1 Propulsion 1 | 1 1 1 . Utility 1 | . 1 2 2 Weapon 3 | . 3 4 4 Tool/Special . | . . . . Unused Backups 7 | . 2 1 4 Power 1 | . . . 1 Propulsion 1 | . 1 . . Utility 2 | . . 1 1 Weapon 3 | . 1 . 2 Tool/Special . | . . . . Average Slot Usage (%) 88 | . 99 100 72 Engine 12 | . 14 14 11 Leg 25 | . 28 28 22 Device 10 | . 14 14 5 Storage 12 | . 14 14 11 Energy Gun 2 | . 4 . . Energy Cannon 14 | . 18 14 11 Special Weapon 8 | . 3 14 11 Peak Build Rating 19 | 9 12 17 19 Average Rating 10 | 5 11 14 11 On Entrance 9 | . 9 11 17 Avg Prop Armor Cover (%) . | . . . . Naked Turns . | . . . . Heaviest Build 17 | 12 17 14 14 Greatest Support 20 | 20 20 20 20 Greatest Overweight (x) 3 | 3 . . . Average Overweight (x) . | . . . . Largest Inventory Capacity 8 | 8 8 8 8 Average Capacity 7 | 7 8 8 8 Most Carried 8 | 5 8 8 8 Average Carried 7 | 3 7 7 7 Final Capacity 8 | 8 8 8 8 Final Carried 8 | 5 8 8 7 Class Distribution -------------------- 100% | Mutant Dominant Class ---------------- Mutant | -10/Materials Mutant | -10/Mines Mutant | -9/Materials Resources | -11 -10 -10 -9 ----------- Run | Yrd Mat Min Mat Matter Collected 274 | 260 . . 14 Remotely . | . . . . Salvage Created 132 | 118 . . 14 Parts 8 | 3 . . 5 Haulers Intercepted . | . . . . Recyclers Shooed . | . . . . Parts Field Recycled . | . . . . Retrieved Matter . | . . . . Parts Self-Destructed . | . . . . Prevented . | . . . . Parts Restored . | . . . . Kills | -11 -10 -10 -9 ------- Run | Yrd Mat Min Mat Combat Hostiles Destroyed . | . . . . Classes Destroyed 3 | 2 . . 1 Builder 1 | . . . 1 Tunneler 1 | 1 . . . Recycler 1 | 1 . . . Best Kill Streak 2 | 2 . . 1 Combat Bots Only . | . . . . Max Kills in Single Turn 1 | 1 . . 1 Gunslinging . | . . . . Exploded . | . . . . Melee . | . . . . Uniques/NPCs Destroyed . | . . . . Combat | -11 -10 -10 -9 -------- Run | Yrd Mat Min Mat Hostile Shots Fired 2 | . . . 2 Missed . | . . . . Hits 2 | . . . 2 Projectile 2 | . . . 2 Damage Taken 20 | . . . 20 Core 10 | . . . 10 Absorbed by Shields . | . . . . Regen/Repaired (Parts) 11 | . . . 11 Core Remaining (%) 100 | 100 . 100 . Volleys Fired 19 | 7 9 . 3 Largest 2 | 2 2 . 1 Hottest 168 | 90 168 . 100 Shots Fired 27 | 14 10 . 3 Gun 14 | 14 . . . Cannon 6 | . 4 . 2 Launcher . | . . . . Special 7 | . 6 . 1 Kinetic . | . . . . Thermal 27 | 14 10 . 3 Explosive . | . . . . Electromagnetic . | . . . . Robot Hit Streak 4 | 4 . . 1 Robot Miss Streak 2 | 1 1 . 2 Penetration Max . | . . . . Secondary Targets . | . . . . Shots Hit Robots 10 | 9 . . 1 Core Hits 4 | 3 . . 1 Critical Kills . | . . . . Critical Parts Destroyed . | . . . . Critical Strikes . | . . . . Melee Attacks . | . . . . Impact . | . . . . Slashing . | . . . . Piercing . | . . . . Sneak Attacks . | . . . . Combat Hostiles . | . . . . Follow-up Attacks . | . . . . Damage Inflicted 126 | 105 . . 21 Guns 105 | 105 . . . Cannons 21 | . . . 21 Explosions . | . . . . Melee . | . . . . Ramming . | . . . . Kinetic . | . . . . Thermal 126 | 105 . . 21 Explosive . | . . . . Electromagnetic . | . . . . Impact . | . . . . Slashing . | . . . . Piercing . | . . . . Highest Corruption . | . . . . Average Corruption . | . . . . Corruption Purged . | . . . . Corruption Blocked . | . . . . Overload Shots . | . . . . Overflow Damage . | . . . . Projectiles . | . . . . Explosions . | . . . . Melee . | . . . . Knockbacks . | . . . . Impact . | . . . . Kinetic . | . . . . Secondary . | . . . . Self-Inflicted Damage . | . . . . Shots . | . . . . Rammed . | . . . . Targets Rammed . | . . . . Kicked . | . . . . Crushed . | . . . . Highest Temperature 121 | 90 121 . 22 Average Temperature 35 | 38 39 . 8 Received Heat Transfer . | . . . . Siege Activations . | . . . . Martial Activations . | . . . . Shielding Activations . | . . . . Robots Disrupted . | . . . . Combat Hostiles . | . . . . Robots Corrupted . | . . . . Combat Hostiles . | . . . . Parts Fried . | . . . . Impact Corruptions . | . . . . Robots Melted . | . . . . Combat Hostiles . | . . . . Parts Melted . | . . . . Heat Transferred 298 | 261 . . 37 Parts Sabotaged . | . . . . Parts Stolen . | . . . . Parts Stripped . | . . . . Power Chain Reactions . | . . . . Alert | -11 -10 -10 -9 ------- Run | Yrd Mat Min Mat Maximum Alert Level . | . . . . Low Security (%) 100 | 100 100 100 100 Level 1 . | . . . . Level 2 . | . . . . Level 3 . | . . . . Level 4 . | . . . . Level 5 . | . . . . High Security . | . . . . Max Security . | . . . . Peak Influence 12 | 10 12 . 6 Initial . | . . . . Average . | . . . . Influence Increases 35 | 10 16 . 9 Destroy 0b10 Robot/NC 15 | 10 . . 5 Successful Hack 12 | . 10 . 2 Destroy Structure 8 | . 6 . 2 Influence Decreases 35 | 10 14 2 9 Entered New Map 2 | . . 2 . Time Decay 33 | 10 14 . 9 Squads Dispatched 1 | . . . 1 Investigation . | . . . . Extermination . | . . . . Reinforcement 1 | . . . 1 Assault . | . . . . Garrison . | . . . . Intercept . | . . . . Searches Triggered . | . . . . Construction Impeded . | . . . . Haulers Reinforced . | . . . . Active Scanning Responses . | . . . . Cargo Convoy Interrupts . | . . . . Stealth | -11 -10 -10 -9 --------- Run | Yrd Mat Min Mat Distress Signals . | . . . . Communications Jammed . | . . . . Distress Signals . | . . . . Times Spotted 12 | . 2 . 10 Peak Tracking Total 9 | . 2 . 9 Tactical Retreats . | . . . . Traps | -11 -10 -10 -9 ------- Run | Yrd Mat Min Mat Traps Triggered . | . . . . Indirectly . | . . . . Trap Hack Attempts . | . . . . Triggered . | . . . . Disarmed . | . . . . Reprogrammed . | . . . . Reused . | . . . . Traps Extracted . | . . . . Installed . | . . . . Triggered . | . . . . Machines | -11 -10 -10 -9 ---------- Run | Yrd Mat Min Mat Machines Disabled . | . . . . Max in Single Turn . | . . . . Machines Repaired . | . . . . Machines Dismantled . | . . . . Machines Sabotaged . | . . . . Overloaded Fab Kills . | . . . . Hacking | -11 -10 -10 -9 --------- Run | Yrd Mat Min Mat Machines Accessed 4 | . 2 . 2 Terminals 3 | . 2 . 1 Fabricators . | . . . . Repair Stations 1 | . . . 1 Recycling Units . | . . . . Scanalyzers . | . . . . Garrison Access . | . . . . Total Hacks 10 | . 4 . 6 Successful 6 | . 3 . 3 Failed 4 | . 1 . 3 Catastrophic 1 | . . . 1 Database Lockouts . | . . . . Manual . | . . . . Terminals 6 | . 4 . 2 Fabricators . | . . . . Repair Stations 4 | . . . 4 Recycling Units . | . . . . Scanalyzers . | . . . . Garrison Access . | . . . . Terminal Hacks 3 | . 3 . . Terminal Index 1 | . 1 . . Maintenance Status 1 | . 1 . . Registered Components 1 | . 1 . . Fabricator Hacks . | . . . . Repair Station Hacks 3 | . . . 3 Scan Component 2 | . . . 2 Repair 1 | . . . 1 Recycling Unit Hacks . | . . . . Scanalyzer . | . . . . Garrison Access Hacks . | . . . . Unauthorized Hacks . | . . . . Terminals . | . . . . Fabricators . | . . . . Repair Stations . | . . . . Recycling Units . | . . . . Scanalyzers . | . . . . Garrison Access . | . . . . Data Cores Recovered . | . . . . Used . | . . . . Hacking Detections 2 | . 1 . 1 Full Trace Events . | . . . . Feedback Events . | . . . . Feedback Blocked . | . . . . Robot Schematics Acquired . | . . . . Robots Built . | . . . . Authchips . | . . . . Time . | . . . . Total Robot Build Rating . | . . . . Part Schematics Acquired . | . . . . Parts Built . | . . . . Authchips . | . . . . Time . | . . . . Total Part Build Rating . | . . . . Part Studies Acquired . | . . . . Parts Repaired 1 | . . . 1 Time 136 | . . . 136 Parts Recycled . | . . . . Recycled Matter . | . . . . Retrieved Matter . | . . . . Retrieved Components . | . . . . Parts Scanalyzed . | . . . . Part Schematics Acquired . | . . . . Parts Damaged . | . . . . Bothacking | -11 -10 -10 -9 ------------ Run | Yrd Mat Min Mat Used RIF Installer . | . . . . Robots Hacked . | . . . . Non-combat . | . . . . Combat . | . . . . Robot Hacks Applied . | . . . . Relay Couplers Released . | . . . . Fabnet Peak Effective % . | . . . . Robots Rewired . | . . . . Allies Hacked . | . . . . Hacks Repelled . | . . . . Allies | -11 -10 -10 -9 -------- Run | Yrd Mat Min Mat Total Allies . | . . . . Largest Group . | . . . . Highest-Rated Group . | . . . . Highest-Rated Ally . | . . . . Total Orders . | . . . . Ally Attacks . | . . . . Total Damage . | . . . . Kills . | . . . . Allies Corrupted . | . . . . Allies Melted . | . . . . Intel | -11 -10 -10 -9 ------- Run | Yrd Mat Min Mat Active Infowar (turns) 486 | 13 243 117 113 Sensors 147 | . . 60 87 Terrain 339 | 13 243 57 26 Robot Analysis Total . | . . . . Derelict Logs Recovered 1 | . . 1 . Drone Launches . | . . . . Drone Recoveries . | . . . . Exploration | -11 -10 -10 -9 ------------- Run | Yrd Mat Min Mat Turns Passed 727 | 117 243 118 249 Spaces Moved 381 | 64 150 92 75 Core 9 | 9 . . . Treads . | . . . . Legs 372 | 55 150 92 75 Wheels . | . . . . Hover . | . . . . Flight . | . . . . Fastest Speed 50 | 50 120 120 120 Average Speed 120 | 121 120 120 120 Slowest Speed 200 | 200 120 120 120 Overloaded Moves . | . . . . Propulsion Burnouts . | . . . . Robots Hopped . | . . . . Potential Cave-ins . | . . . . Cave-ins Triggered . | . . . . Exploration Rate (%) 16 | 4 33 18 9 Regions Visited 3 Branch Regions 1 Pre-discovered Areas . | . . . . Known Exits Taken . | . . . . Unknown Exits Taken 3 | 1 1 1 . Scrap Searched . | . . . . Spaces Dug 7 | . 6 . 1 Terrain Destroyed 7 | . 6 . 1 Melee . | . . . . Projectile 7 | . 6 . 1 AOE . | . . . . Terrain Rammed . | . . . . Walls Destroyed . | . . . . Machines Disabled . | . . . . Actions | -11 -10 -10 -9 --------- Run | Yrd Mat Min Mat Total 605 | 86 191 100 228 Wait 175 | 4 22 5 144 Move 378 | 63 149 91 75 Hop . | . . . . Pick Up 11 | 5 4 1 1 Fast Attach 12 | 7 2 1 2 Attach 1 | . . . 1 Detach 1 | . 1 . . Swap 2 | . 1 . 1 Drop 6 | . 3 2 1 Fire 19 | 7 9 . 3 Melee . | . . . . Ram . | . . . . Kick . | . . . . Crush . | . . . . Escape Stasis . | . . . . Rewire . | . . . . Trap . | . . . . Miscellaneous . | . . . . Route ------- -11/Scrapyard -10/Materials -10/Mines -9/Materials History --------- Turn | Location | Event 20 | -11/Scrapyard | Discovered new exit (range 15) 118 | -11/Scrapyard | Entered Materials 279 | -10/Materials | Discovered new exit (range 10) 319 | -10/Materials | Build established: Mutant 361 | -10/Materials | Entered Mines 416 | -10/Mines | Found a damaged Exp. Sensor Array with a note attached 419 | -10/Mines | Found Prototype Device 419 | -10/Mines | Identified Exp. Sensor Array 424 | -10/Mines | Learned 2 Materials zone layouts 461 | -10/Mines | Discovered new exit (range 13) 479 | -10/Mines | Entered Materials 479 | -9/Materials | Evolved 2 slots: Propulsion x1, Utility x1 627 | -9/Materials | Repaired Broken Exp. Sensor Array 728 | -9/Materials | Self-destructed Last Messages --------------- Time: 136 >>Repair Repairing Broken Exp. Sensor Array... ETC: 136 00627_ Repair station completes Broken Exp. Sensor Array repairs. 00627_ Acquired Exp. Sensor Array. 00652_ O-16 Technician: "IFF HANDSHAKE FAILED. SECURING TERMINAL." 00658_ O-16 Technician uses terminal to summon reinforcements. 00658_ ALERT: Hostiles spotted, dispatching reinforcements to Terminal M012. 00658_ O-16 Technician locks terminal. 00684_ Connecting with Terminal... 00695_ U-05 Engineer destroyed. 00697_ Acquired 14 matter. 00700_ Acquired Terrain Scan Processor. 00709_ R-06 Scavenger collects Wheel. 00713_ R-06 Scavenger collects Terrain Scanner. 00716_ R-06 Scavenger collects Wheel. 00725_ Dropped Sml. Laser. 00725_ Acquired Grenade Launcher. Map ----- +----------------------------------------------------+ | | | | | | | ?????????????#?????????#?????#???????????????????? | | ?????????????????######?????#????????????????????? | | #####?????????? ##?????????????????????????? | | #??????????""""" "#??????????????????????????? | | """ #?#??????# """"" "##???#?????????????????????? | | """ ##???????# """"" "#?#????????#???????????????? | | """ #????????# """"" T#????????? ????????????????? | | #??????#?# """"" "#??????????????????????????? | | " " #????#?### """"" "###??#"????????????????????? | | "R" #????????# """""!"###?#?"?? ?????????????????? | | """ #??????#?# = ##?????????????????????????? | | #????#???#####+###|#??#?"?????? +????????????? | | +############### ###???#??? ? #????????????? | | T ###??????? ? ?????????????? | | "" #?????? ???s ??????????????? | | ##??????###/#???????????????? | | ################ ###???? s ????????????????? | | ???#???#????######r####### ?g ?????????????????? | | ????????????# #?bss ?? ???????????????? | | ?????????#??#! """ """ [#? #???????????????????? | | ??????#?????# """ """ # k#?? ?? ?????????????? | | ??????#??#??# """ """ #s #???????????????????? | | ????????##?## @ #??"????????????????? | | ??????#?????############## +???????????????????? | | ?????????????##? ????"???? #???????????????????? | | ????????????????? ????? ?? #????????#??????????? | | ??????????????#??? ??????#? #???????????????????? | | ???????????????????????????? #???#???????????????? | | ??????#????##?????????? ??? #?????#?????????????? | | ?????????#??#??????? ????????#???????????????????? | | ??????????????????"? ????#?????? ????????????????? | | ????????????#???? ??? ???????????????????????????? | | ???????????????#??????#??#? ?????????????????????? | | ??????????????#???????#??????????????????????????? | | ?????????????????#???????#? ?????????????????????? | | ?????????????????????????????????????????????????? | | ??????????????????????????????? ?????????????????? | | ?????????????????????????????????????????????????? | | ?????????????????????????????????????????????????? | | ?????????????????????????????????????????????????? | | ?????????????????????????????????????????????????? | | ?????????????????????????????????????????????????? | | ?????????????????????????????????????????????????? | | ?????????????????????????????????????????????????? | | ?????????????????????????????????????????????????? | | ?????????????????????????????????????????????????? | | ?????????????????????????????????????????????????? | +----------------------------------------------------+ Best States ------------- Heat Dissipation 28 Energy Generation 10 Energy Capacity 125 Matter Stores 290 Matter Capacity 300 Sight Range 16 Robot Scan Range 20 Terrain Scan Range 16 Terrain Scan Density 85 Evasion (%) 55 Item Schematics ----------------- None Robot Schematics ------------------ None Fabricated ------------ Nothing Repaired ---------- Exp. Sensor Array | 62% | -9/Materials | Broken Studied --------- None Alien Tech Used ----------------- None Achievements -------------- None Challenges ------------ None Game ------ Seed HelicalEnhancedBrace Manual? 0 Play Time 00:09:47 Cumulative 7.1 hours Start 2026.07.07 @ 00:30:17 End 2026.07.07 @ 00:42:59 Sessions 1 Manual Loads 0 Difficulty Rogue Special Mode None Game No. 14 Rogue 14 Adventurer 0 Explorer 0 Win Type - Total 0 Types 0/0/0/0/0/0/0/0/0/0 Lore% 19 Gallery% 21 Achievement% 18 Wizard Run 0 Options --------- Layout 0 ASCII 0 Keyboard 0 Movement Mouse Keybinds 0 Fullscreen 2 Font 24/Smallcaps Map View 76x50 Zoom Use 0% Tactical HUD 1 Map Filters NONE Filters NONE Steam 1 RUN: 9bcc8aff-99af-4637-81f1-568a940db869